fUST/lending_fUST_20240820
["ID","MTS","AMOUNT","RATE_DAILY","PERIOD"]
[335372320,1724165442715,-500.0,0.00017808,2]
[335372321,1724165442729,-500.0,0.00017808,2]
[335372322,1724165442739,-500.0,0.00017808,2]
[335372324,1724165442749,-665.08,0.00017808,2]
[335372325,1724165442758,-500.0,0.00017808,2]
[335372326,1724165442767,-500.0,0.00017808,2]
[335372327,1724165442777,-500.0,0.00017808,2]
[335372328,1724165442787,-500.0,0.00017808,2]
[335372329,1724165442795,-601.2831112,0.00017808,2]
[335372330,1724165442804,-980.32,0.00017808,2]
[335372331,1724165442814,-1762.81,0.00017808,2]
[335372332,1724165442823,-500.0,0.00017808,2]
[335372333,1724165442833,-500.0,0.00017808,2]
[335372334,1724165442842,-500.0,0.00017808,2]
[335372335,1724165442851,-500.0,0.00017808,2]
[335372336,1724165442861,-500.0,0.00017808,2]
[335372337,1724165442870,-432.35365398,0.00017808,2]
[335372338,1724165442880,-500.0,0.00017808,2]
[335372339,1724165442889,-238.650032,0.00017808,2]
[335372340,1724165442899,-8221.91469205,0.00017937,2]
[335372341,1724165442908,-8942.02399666,0.00018,4]
[335372342,1724165442917,-500.0,0.00018082,2]
[335372343,1724165442926,-500.0,0.00018082,2]
[335372344,1724165442935,-207.68,0.00018082,2]
[335372345,1724165442945,-500.0,0.00018082,2]
[335372346,1724165442954,-500.0,0.00018082,2]
[335372347,1724165442963,-500.0,0.00018082,2]
[335372348,1724165442973,-665.08,0.00018082,2]
[335372349,1724165442983,-500.0,0.00018082,2]
[335372350,1724165442992,-500.0,0.00018082,2]
[335372351,1724165443001,-500.0,0.00018082,2]
[335372352,1724165443011,-500.0,0.00018082,2]
[335372353,1724165443022,-1762.81,0.00018082,2]
[335372354,1724165443031,-980.32,0.00018082,2]
[335372355,1724165443041,-500.0,0.00018082,2]
[335372356,1724165443050,-500.0,0.00018082,2]
[335372357,1724165443059,-500.0,0.00018082,2]
[335372358,1724165443068,-500.0,0.00018082,2]
[335372359,1724165443078,-500.0,0.00018082,2]
[335372360,1724165443086,-500.0,0.00018082,2]
[335372361,1724165443096,-600.0,0.00018117,2]
[335372362,1724165443105,-500.0,0.0001815,2]
[335372363,1724165443115,-600.0,0.00018174,2]
[335372364,1724165443124,-500.0,0.000182,2]
[335372365,1724165443133,-500.0,0.00018216,2]
[335372366,1724165443143,-500.0,0.00018271,2]
[335372367,1724165443152,-500.0,0.00018346,2]
[335372368,1724165443161,-500.0,0.00018356,2]
[335372369,1724165443170,-500.0,0.00018356,2]
[335372370,1724165443180,-500.0,0.00018356,2]
[335372371,1724165443189,-500.0,0.00018356,2]
[335372372,1724165443199,-500.0,0.00018356,2]
[335372373,1724165443208,-665.08,0.00018356,2]
[335372374,1724165443217,-500.0,0.00018356,2]
[335372375,1724165443226,-500.0,0.00018356,2]
[335372376,1724165443236,-500.0,0.00018356,2]
[335372377,1724165443245,-500.0,0.00018356,2]
[335372378,1724165443254,-1762.81,0.00018356,2]
[335372379,1724165443264,-980.32,0.00018356,2]
[335372380,1724165443276,-500.0,0.00018356,2]
[335372381,1724165443285,-500.0,0.00018356,2]
[335372382,1724165443294,-500.0,0.00018356,2]
[335372383,1724165443304,-500.0,0.00018356,2]
[335372384,1724165443313,-500.0,0.00018356,2]
[335372385,1724165443323,-500.0,0.00018356,2]
[335372386,1724165443333,-600.0,0.00018382,2]
[335372387,1724165443343,-500.0,0.00018416,2]
[335372388,1724165443352,-600.0,0.00018422,2]
[335372389,1724165443362,-500.0,0.00018442,2]
[335372390,1724165443371,-500.0,0.00018494,2]
[335372391,1724165443380,-500.0,0.0001863,2]
[335372392,1724165443509,-500.0,0.0001863,2]
[335372393,1724165443519,-500.0,0.0001863,2]
[335372394,1724165443534,-173.6686826,0.0001863,2]
[335372395,1724165443544,-500.0,0.0001863,2]
[335372396,1724165443554,-665.08,0.0001863,2]
[335372397,1724165443565,-500.0,0.0001863,2]
[335372399,1724165443574,-500.0,0.0001863,2]
[335372401,1724165443584,-373.05715351,0.0001863,2]
[335372403,1724165443595,-500.0,0.0001863,2]
[335372404,1724165443604,-980.32,0.0001863,2]
[335372405,1724165443616,-1762.81,0.0001863,2]
[335372406,1724165443628,-500.0,0.0001863,2]
[335372407,1724165443639,-500.0,0.0001863,2]
[335372408,1724165443650,-500.0,0.0001863,2]
[335372410,1724165443659,-500.0,0.0001863,2]
[335372411,1724165443668,-500.0,0.0001863,2]
[335372412,1724165443678,-500.0,0.0001863,2]
[335372413,1724165443688,-500.0,0.00018677,2]
[335372415,1724165443698,-600.0,0.00018691,2]
[335372417,1724165443708,-600.0,0.00018695,2]
[335372419,1724165443719,-161.9,0.00018706,2]
[335372422,1724165443733,-500.0,0.00018778,2]
[335372424,1724165443743,-600.0,0.00018799,2]
[335372426,1724165443752,-823.16820639,0.0001881,2]
[335372427,1724165443762,-500.0,0.00018811,2]
[335372428,1724165443772,-500.0,0.00018845,2]
[335372429,1724165443783,-600.0,0.00018861,2]
[335372430,1724165443792,-500.0,0.00018904,2]
[335372431,1724165443802,-500.0,0.00018904,2]
[335372432,1724165443813,-500.0,0.00018904,2]
[335372433,1724165443823,-500.0,0.00018904,2]
[335372434,1724165443832,-665.08,0.00018904,2]
[335372435,1724165443843,-500.0,0.00018904,2]
[335372437,1724165443853,-500.0,0.00018904,2]
[335372439,1724165443864,-500.0,0.00018904,2]
[335372441,1724165443873,-980.32,0.00018904,2]
[335372443,1724165443882,-1762.81,0.00018904,2]
[335372444,1724165443892,-500.0,0.00018904,2]
[335372445,1724165443902,-500.0,0.00018904,2]
[335372446,1724165443911,-500.0,0.00018904,2]
[335372447,1724165443921,-500.0,0.00018904,2]
[335372448,1724165443930,-500.0,0.00018904,2]
[335372449,1724165443939,-500.0,0.00018904,2]
[335372450,1724165443948,-500.0,0.00018906,2]
[335372451,1724165443959,-600.0,0.00018958,2]
[335372452,1724165443970,-500.0,0.00019043,2]
[335372453,1724165443980,-500.0,0.00019085,2]
[335372454,1724165443990,-600.0,0.00019115,2]
[335372455,1724165444000,-1415.0,0.0001917,2]
[335372456,1724165444009,-150.074,0.0001917,2]
[335372457,1724165444018,-7726.0,0.0001917,2]
[335372458,1724165444030,-500.0,0.00019178,2]
[335372459,1724165444039,-645.92,0.00019178,2]
[335372460,1724165444048,-500.0,0.00019178,2]
[335372461,1724165444057,-500.0,0.00019178,2]
[335372462,1724165444066,-665.08,0.00019178,2]
[335372463,1724165444075,-500.0,0.00019178,2]
[335372464,1724165444085,-500.0,0.00019178,2]
[335372465,1724165444094,-500.0,0.00019178,2]
[335372466,1724165444103,-980.32,0.00019178,2]
[335372467,1724165444112,-1762.81,0.00019178,2]
[335372468,1724165444122,-425.96468339,0.00019178,2]
[335372469,1724165444131,-500.0,0.00019178,2]
[335372470,1724165444140,-500.0,0.00019178,2]
[335372471,1724165444149,-500.0,0.00019178,2]
[335372472,1724165444158,-433.62754844,0.00019178,2]
[335372473,1724165444167,-500.0,0.00019178,2]
[335372474,1724165444177,-288.4748004,0.00019178,2]
[335372475,1724165444186,-251.0,0.00019178,2]
[335372476,1724165444195,-500.0,0.00019199,2]
[335372477,1724165444206,-384.04,0.000192,2]
[335372478,1724165444217,-5870.59,0.000192,2]
[335372479,1724165444229,-68643.82,0.000192,2]
[335372480,1724165444239,-500.0,0.00019237,2]
[335372481,1724165444250,-500.0,0.00019258,2]
[335372482,1724165444260,-158.76411183,0.00019278,2]
[335372483,1724165444271,-600.0,0.00019289,2]
[335372484,1724165444285,-600.0,0.00019363,2]
[335372485,1724165444298,-500.0,0.0001937,2]
[335372486,1724165444308,-19852.08634763,0.00019398,2]
[335372487,1724165444317,-600.0,0.00019415,2]
[335372488,1724165444326,-500.0,0.00019452,2]
[335372489,1724165444335,-500.0,0.00019452,2]
[335372490,1724165444345,-500.0,0.00019452,2]
[335372491,1724165444354,-665.08,0.00019452,2]
[335372492,1724165444363,-500.0,0.00019452,2]
[335372493,1724165444372,-500.0,0.00019452,2]
[335372494,1724165444384,-500.0,0.00019452,2]
[335372495,1724165444393,-980.32,0.00019452,2]
[335372496,1724165444402,-1762.81,0.00019452,2]
[335372497,1724165444412,-500.0,0.00019452,2]
[335372498,1724165444422,-500.0,0.00019452,2]
[335372499,1724165444434,-500.0,0.00019452,2]
[335372500,1724165444446,-500.0,0.00019452,2]
[335372501,1724165444456,-500.0,0.0001954,2]
[335372502,1724165444468,-155.12080504,0.00019569,2]
[335372503,1724165444478,-207.6000865,0.00019589,2]
[335372504,1724165444488,-153.0,0.00019589,2]
[335372505,1724165444500,-207.6000865,0.00019589,2]
[335372506,1724165444510,-153.0,0.00019589,2]
[335372507,1724165444524,-207.6000865,0.00019589,2]
[335372508,1724165444535,-500.0,0.00019591,2]
[335372509,1724165444544,-161.9,0.00019639,2]
[335372510,1724165444556,-600.0,0.00019658,2]
[335372511,1724165444568,-500.0,0.00019726,2]
[335372512,1724165444577,-500.0,0.00019726,2]
[335372513,1724165444586,-500.0,0.00019726,2]
[335372514,1724165444597,-665.08,0.00019726,2]
[335372515,1724165444609,-500.0,0.00019726,2]
[335372516,1724165444618,-601.65608207,0.00019726,2]
[335372517,1724165444629,-644.5,0.00019726,2]
[335372518,1724165444640,-980.32,0.00019726,2]
[335372519,1724165444650,-1762.81,0.00019726,2]
[335372520,1724165444662,-500.0,0.00019726,2]
[335372521,1724165444673,-500.0,0.00019726,2]
[335372522,1724165444684,-500.0,0.00019726,2]
[335372523,1724165444695,-500.0,0.00019726,2]
[335372524,1724165444706,-500.0,0.00019766,2]
[335372525,1724165444717,-500.0,0.00019788,2]
[335372526,1724165444731,-500.0,0.00019793,2]
[335372527,1724165444744,-500.0,0.00019829,2]
[335372528,1724165444754,-500.0,0.00019839,2]
[335372529,1724165444765,-600.0,0.00019861,2]
[335372530,1724165444779,-500.0,0.0001988,2]
[335372531,1724165444790,-500.0,0.00019949,2]
[335372532,1724165444800,-600.0,0.00019984,2]
[335372533,1724165444813,-360.81815862,0.0002,2]
[335372534,1724165444824,-159.23515159,0.0002,2]
[335372535,1724165444836,-217.64702912,0.0002,2]
[335372536,1724165444846,-500.0,0.0002,2]
[335372537,1724165444856,-174.63720972,0.0002,2]
[335372538,1724165444867,-500.0,0.0002,2]
[335372539,1724165444878,-500.0,0.0002,2]
[335372540,1724165444889,-665.08,0.0002,2]
[335372541,1724165444903,-500.0,0.0002,2]
[335372542,1724165444913,-980.32,0.0002,2]
[335372543,1724165444923,-1762.81,0.0002,2]
[335372544,1724165444934,-500.0,0.0002,2]
[335372545,1724165444945,-500.0,0.0002,2]
[335372546,1724165444956,-521.75275389,0.0002,2]
[335372547,1724165444967,-500.0,0.0002,2]
[335372548,1724165444978,-500.0,0.00020004,2]
[335372549,1724165444988,-639.550841,0.00020025,2]
[335372550,1724165444998,-639.550841,0.00020025,2]
[335372551,1724165445009,-500.0,0.00020044,2]
[335372552,1724165445019,-10003.90066576,0.00020119,2]
[335372553,1724165445031,-600.0,0.00020127,2]
[335372554,1724165445041,-500.0,0.00020131,2]
[335372555,1724165445050,-600.0,0.00020206,2]
[335372556,1724165445060,-600.0,0.00020211,2]
[335372557,1724165445070,-500.0,0.00020218,2]
[335372558,1724165445080,-600.0,0.00020233,2]
[335372559,1724165445089,-324.07737091,0.00020273,2]
[335372560,1724165445098,-500.0,0.00020273,2]
[335372561,1724165445107,-500.0,0.00020273,2]
[335372562,1724165445116,-665.08,0.00020273,2]
[335372563,1724165445127,-286.38911686,0.00020273,2]
[335372564,1724165445136,-980.32,0.00020273,2]
[335372565,1724165445145,-1762.81,0.00020273,2]
[335372566,1724165445154,-500.0,0.00020273,2]
[335372567,1724165445164,-500.0,0.00020273,2]
[335372568,1724165445174,-500.0,0.00020273,2]
[335372569,1724165445184,-1000.0,0.00020278,2]
[335372570,1724165445193,-1373.56818036,0.00020293,2]
[335372571,1724165445202,-153.0,0.00020411,2]
[335372572,1724165445213,-153.0,0.00020411,2]
[335372573,1724165445224,-153.0,0.00020411,2]
[335372574,1724165445234,-153.0,0.00020411,2]
[335372575,1724165445245,-500.0,0.00020422,2]
[335372576,1724165445255,-600.0,0.00020425,2]
[335372577,1724165445264,-500.0,0.00020495,2]
[335372578,1724165445275,-500.0,0.00020522,2]
[335372579,1724165445284,-500.0,0.00020543,2]
[335372580,1724165445294,-500.0,0.00020547,2]
[335372581,1724165445303,-500.0,0.00020547,2]
[335372582,1724165445312,-665.08,0.00020547,2]
[335372583,1724165445322,-980.32,0.00020547,2]
[335372584,1724165445333,-1762.81,0.00020547,2]
[335372585,1724165445343,-500.0,0.00020547,2]
[335372586,1724165445354,-633.67234634,0.00020547,2]
[335372587,1724165445364,-342.88935724,0.00020547,2]
[335372589,1724165445374,-928.685113,0.00020548,2]
[335372591,1724165445383,-161.9,0.00020572,2]
[335372593,1724165445393,-909.78698035,0.00020602,2]
[335372595,1724165445404,-500.0,0.00020615,2]
[335372597,1724165445415,-600.0,0.00020641,2]
[335372599,1724165445425,-863.1714911,0.00020652,2]
[335372601,1724165445435,-675.0,0.00020707,2]
[335372603,1724165445445,-2174.89840429,0.0002071,2]
[335372605,1724165445454,-500.0,0.00020728,2]
[335372607,1724165445463,-600.0,0.00020748,2]
[335372609,1724165445475,-500.0,0.00020781,2]
[335372610,1724165445487,-1830.04600683,0.00020799,2]
[335372611,1724165445500,-600.0,0.000208,2]
[335372612,1724165445511,-500.0,0.00020802,2]
[335372613,1724165445523,-600.0,0.00020818,2]
[335372614,1724165445534,-500.0,0.00020821,2]
[335372615,1724165445546,-500.0,0.00020821,2]
[335372616,1724165445556,-665.08,0.00020821,2]
[335372617,1724165445567,-980.32,0.00020821,2]
[335372618,1724165445579,-1762.81,0.00020821,2]
[335372619,1724165445589,-500.0,0.00020821,2]
[335372620,1724165445600,-600.0,0.00020824,2]
[335372621,1724165445612,-500.0,0.00020825,2]
[335372622,1724165445623,-500.0,0.00020827,2]
[335372623,1724165445635,-865.80480596,0.00020874,2]
[335372624,1724165445647,-2092.36,0.000209,31]
[335372625,1724165445657,-2092.36,0.000209,31]
[335372626,1724165445668,-2092.36,0.000209,31]
[335372627,1724165445678,-2092.36,0.000209,31]
[335372628,1724165445689,-2092.36,0.000209,31]
[335372629,1724165445699,-2092.36,0.000209,31]
[335372631,1724165445709,-2092.36,0.000209,31]
[335372632,1724165445719,-2092.36,0.000209,31]
[335372633,1724165445731,-2092.36,0.000209,31]
[335372634,1724165445742,-2092.36,0.000209,31]
[335372635,1724165445752,-2092.36,0.000209,31]
[335372636,1724165445762,-2092.36,0.000209,31]
[335372637,1724165445773,-2092.36,0.000209,31]
[335372638,1724165445783,-2092.36,0.000209,31]
[335372639,1724165445795,-2092.36,0.000209,31]
[335372640,1724165445807,-2092.36,0.000209,31]
[335372641,1724165445817,-600.0,0.00020901,2]
[335372642,1724165445827,-683.64438765,0.00020915,2]
[335372643,1724165445837,-600.0,0.00020927,2]
[335372645,1724165445848,-707.45012855,0.00020962,2]
[335372646,1724165445859,-3000.0,0.00021,2]
[335372647,1724165445870,-126499.41497098,0.00021,2]
[335372648,1724165445880,-155.10265467,0.00021,2]
[335372650,1724165445891,-305.86356289,0.00021,2]
[335372651,1724165445903,-434.00975875,0.00021,2]
[335372652,1724165445914,-2419.89933959,0.00021,2]
[335372653,1724165445925,-551.16624487,0.00021,2]
[335372654,1724165445935,-273.91008144,0.00021,2]
[335372655,1724165445946,-10511.84618177,0.00021,2]
[335372656,1724165445957,-182.5,0.00021,2]
[335372657,1724165445968,-1671.98997101,0.00021,2]
[335372658,1724165445978,-154.89311412,0.00021,2]
[335372659,1724165445990,-218.51615349,0.00021,2]
[335372660,1724165446001,-218.08775075,0.00021,2]
[335372661,1724165446012,-3000.0,0.0002101,2]
[335372662,1724165446025,-3000.0,0.0002102,2]
[335372663,1724165446035,-3000.0,0.0002103,2]
[335372664,1724165446046,-3000.0,0.0002104,2]
[335372665,1724165446057,-3000.0,0.0002105,2]
[335372666,1724165446066,-3000.0,0.0002106,2]
[335372667,1724165446078,-3000.0,0.0002107,2]
[335372668,1724165446089,-3000.0,0.0002108,2]
[335372669,1724165446099,-3000.0,0.0002109,2]
[335372670,1724165446109,-500.0,0.00021095,2]
[335372671,1724165446120,-500.0,0.00021095,2]
[335372672,1724165446130,-665.08,0.00021095,2]
[335372673,1724165446139,-980.32,0.00021095,2]
[335372674,1724165446149,-1762.81,0.00021095,2]
[335372675,1724165446160,-500.0,0.00021095,2]
[335372676,1724165446171,-3000.0,0.000211,2]
[335372677,1724165446181,-3000.0,0.0002111,2]
[335372678,1724165446191,-3000.0,0.0002112,2]
[335372679,1724165446202,-3447.13241367,0.00021125,120]
[335372680,1724165446214,-4600.481882,0.0002113,2]
[335372681,1724165446224,-684.67026372,0.00021172,2]
[335372682,1724165446236,-8221.91469205,0.0002133,2]
[335372683,1724165446246,-500.0,0.00021369,2]
[335372684,1724165446256,-500.0,0.00021369,2]
[335372685,1724165446267,-665.08,0.00021369,2]
[335372686,1724165446284,-980.32,0.00021369,2]
[335372687,1724165446296,-1762.81,0.00021369,2]
[335372688,1724165446307,-500.0,0.00021369,2]
[335372689,1724165446316,-161.9,0.00021505,2]
[335372690,1724165446328,-1602.82529477,0.00021539,2]
[335372691,1724165446338,-500.0,0.00021643,2]
[335372692,1724165446349,-500.0,0.00021643,2]
[335372693,1724165446361,-665.08,0.00021643,2]
[335372694,1724165446373,-254.3822583,0.00021643,2]
[335372695,1724165446443,-725.9377417,0.00021643,2]
[335372696,1724165446452,-1762.81,0.00021643,2]
[335372697,1724165446463,-500.0,0.00021643,2]
[335372698,1724165446474,-476.01097179,0.00021797,2]
[335372699,1724165446485,-384.04,0.000218,2]
[335372700,1724165446494,-3126.18789511,0.00021815,2]
[335372701,1724165446599,-160.46171883,0.00014245,2]
[335372702,1724165446608,-203.2906727,0.00014245,2]
[335372703,1724165446618,-500.0,0.00016438,2]
[335372704,1724165446627,-323.01900845,0.00016712,2]
[335372705,1724165446639,-176.98099155,0.00016712,2]
[335372706,1724165446753,-1991.09804477,0.00021815,2]
[335372707,1724165446763,-156.42510166,0.00021917,2]
[335372708,1724165446774,-500.0,0.00021917,2]
[335372709,1724165446783,-665.08,0.00021917,2]
[335372710,1724165446792,-980.32,0.00021917,2]
[335372711,1724165446802,-1762.81,0.00021917,2]
[335372712,1724165446812,-461.6063592,0.00021917,2]
[335372713,1724165446824,-38.3936408,0.00021917,2]
[335372714,1724165446834,-154.76012181,0.00022,2]
[335372715,1724165446843,-5870.59,0.00022,14]
[335372716,1724165446853,-13858.52999768,0.00022,14]
[335372717,1724165446910,-413.70707529,0.00012934,2]
[335372718,1724165446920,-811.47145884,0.00012989,2]
[335372719,1724165446930,-158.1221147,0.00014519,2]
[335372720,1724165446939,-153.0,0.00019589,2]
[335372721,1724165446948,-855.51935117,0.00022,14]
[335372729,1724165859613,200.0,0.00021,120]
[335372740,1724166330368,-8845.25511796,8.521e-05,2]
[335372741,1724166330394,-1500.0,9.999e-05,2]
[335372742,1724166330421,-300.0,0.0001008,2]
[335372743,1724166330445,-24900.0,0.00010467,2]
[335372744,1724166330469,-420.0,0.00011089,2]
[335372745,1724166330492,-180.220466,0.00011198,2]
[335372746,1724166330517,-180.220466,0.00011392,2]
[335372747,1724166330541,-174.85504165,0.00011409,2]
[335372748,1724166330566,-180.220466,0.00011587,2]
[335372749,1724166330588,-154.66746495,0.00011712,2]
[335372750,1724166330613,-180.220466,0.00011781,2]
[335372751,1724166330642,-55478.02051668,0.0001212,2]
[335372752,1724166330665,-38053.21894976,0.0001212,2]
[335372753,1724166333133,-202.2562543,0.00011894,2]
[335372754,1724166333155,-17424.80156692,0.0001212,2]
[335372755,1724166333177,-155.01504428,0.0001212,2]
[335372756,1724166333204,-42415.91084593,0.00012163,2]
[335372757,1724166333230,-587.0,0.00012197,2]
[335372758,1724166333255,-130196.654375,0.00012542,2]
[335372759,1724166333278,-330.1068973,0.00012573,2]
[335372760,1724166333301,-275.65535801,0.00012773,2]
[335372761,1724166333325,-5243.46622326,0.00012779,2]
[335372762,1724166425167,-1500.0,9.899e-05,2]
[335372763,1724166425188,-300.0,0.00011841,2]
[335372764,1724166425210,-55478.02051668,0.00011842,2]
[335372765,1724166425235,-9660.2899886,0.00012551,2]
[335372766,1724166425256,-3443.04291472,0.00012551,2]
[335372767,1724166426124,-6217.24707388,0.00012551,2]
[335372768,1724166426156,-7014.13255051,0.00012629,2]
[335372769,1724166426180,-20797.12874944,0.00012629,2]
[335372770,1724166426203,-305.86356289,0.00012779,2]
[335372771,1724166426226,-154.7714216,0.00012779,2]
[335372772,1724166426250,-154.69833824,0.00012779,2]
[335372773,1724166426271,-218.08775075,0.00012779,2]
[335372774,1724166426293,-1671.98997101,0.00012779,2]
[335372775,1724166426315,-2128.24653365,0.00012782,2]
[335372776,1724166426335,-3112.4001101,0.00012798,2]
[335372777,1724166426357,-65098.3271873,0.00012888,2]
[335372778,1724166426379,-7712.46483929,0.000129,2]
[335372779,1724166426406,-3092.99892406,0.00012971,2]
[335372780,1724166426427,-154.66746495,0.00012971,2]
[335372781,1724166426449,-65098.3271873,0.00012979,2]
[335372782,1724166426471,-65098.3271873,0.00012979,2]
[335372783,1724166426494,-2282.67176676,0.00012985,3]
[335372784,1724166426515,-2143.02877073,0.00012989,2]
[335372785,1724166426537,-544.06785329,0.00012989,2]
[335372786,1724166426558,-518.99885938,0.00012989,2]
[335372787,1724166426580,-264.9996804,0.00012989,2]
[335372788,1724166426602,-569.6147727,0.00012991,2]
[335372789,1724166426624,-375.39357156,0.00012991,2]
[335372790,1724166426654,-154.82423039,0.00012991,2]
[335372791,1724166426680,-601.94985179,0.00012991,2]
[335372792,1724166426702,-288.30937481,0.00012991,2]
[335372793,1724166426723,-413.70707529,0.00012999,2]
[335372794,1724166426745,-405.27319722,0.00012999,2]
[335372795,1724166426767,-2712.87069354,0.00012999,2]
[335372796,1724166426789,-320.30409158,0.00012999,2]
[335372797,1724166426811,-493.36312925,0.00013025,2]
[335372798,1724166426833,-180.87880777,0.00013025,2]
[335372799,1724166426858,-404.47284307,0.00013025,2]
[335372800,1724166426881,-420.0,0.00013025,2]
[335372801,1724166426912,-780.13119624,0.00013051,2]
[335372802,1724166426935,-154.66746495,0.00013333,2]
[335372803,1724166426957,-301.56944091,0.00013477,2]
[335372804,1724166426980,-521.35824671,0.00013477,2]
[335372805,1724166427001,-154.66746495,0.00013496,2]
[335372806,1724166427022,-154.76012181,0.00013599,2]
[335372807,1724166427043,-154.76012181,0.00013599,2]
[335372808,1724166427063,-154.76012181,0.00013688,2]
[335372809,1724166427085,-154.76012181,0.00013688,2]
[335372810,1724166427106,-154.76012181,0.00013688,2]
[335372811,1724166427127,-154.76012181,0.00013688,2]
[335372812,1724166427153,-154.76012181,0.00013688,2]
[335372813,1724166427175,-154.76012181,0.00013688,2]
[335372814,1724166427196,-154.76012181,0.00013697,2]
[335372815,1724166427219,-154.76012181,0.00013697,2]
[335372816,1724166427243,-862.53940611,0.00013697,2]
[335372817,1724166427264,-1706.94264471,0.00013697,2]
[335372818,1724166427286,-342.6945234,0.00013697,2]
[335372819,1724166427308,-154.79103211,0.00013697,2]
[335372820,1724166427329,-154.76012181,0.00013697,2]
[335372821,1724166427349,-154.76012181,0.00013697,2]
[335372822,1724166427370,-154.76012181,0.00013697,2]
[335372823,1724166427394,-298.97351394,0.00013697,2]
[335372824,1724166427414,-186.98704903,0.00013697,2]
[335372825,1724166427436,-501.71886419,0.00013698,2]
[335372826,1724166427459,-500.0,0.00013698,2]
[335372827,1724166427483,-500.0,0.00013698,2]
[335372828,1724166427508,-500.0,0.00013698,2]
[335372829,1724166427534,-500.0,0.00013698,2]
[335372830,1724166427560,-500.0,0.00013698,2]
[335372831,1724166427586,-500.0,0.00013698,2]
[335372832,1724166427609,-500.0,0.00013698,2]
[335372833,1724166427633,-500.0,0.00013698,2]
[335372834,1724166427662,-196.67697984,0.00013698,2]
[335372835,1724166427687,-500.0,0.00013698,2]
[335372836,1724166427713,-500.0,0.00013698,2]
[335372837,1724166427737,-200.0,0.00013698,2]
[335372838,1724166427760,-154.66746495,0.00013698,2]
[335372839,1724166427781,-155.03129781,0.00013698,2]
[335372840,1724166427802,-933.89722372,0.00013698,2]
[335372841,1724166427823,-154.66746495,0.00013698,2]
[335372842,1724166427843,-154.76012181,0.00013698,4]
[335372843,1724166427864,-494.06082422,0.00013698,2]
[335372844,1724166427887,-557.477596,0.00013699,2]
[335372845,1724166427913,-3000.0,0.00013699,2]
[335372846,1724166427936,-500.0,0.00013699,2]
[335372847,1724166427958,-213.31614555,0.00013699,2]
[335372848,1724166427980,-194.83065114,0.00013699,2]
[335372849,1724166428001,-158.63197654,0.00013971,2]
[335372850,1724166428022,-3112.40011007,0.00014213,2]
[335372851,1724166428044,-8845.25511796,0.00014245,2]
[335372852,1724166428065,-694.435858,0.00014247,2]
[335372853,1724166428086,-587.0,0.00014327,2]
[335372854,1724166428107,-154.76012181,0.00014519,2]
[335372855,1724166428135,-7712.46483926,0.00014832,2]
[335372856,1724166428161,-42415.91084593,0.00015489,2]
[335372857,1724166428182,-202.2562543,0.00015489,2]
[335372858,1724166428202,-155.01504428,0.00015489,2]
[335372859,1724166428227,-174.85504165,0.00015489,2]
[335372860,1724166428247,-371.4407541,0.00015489,3]
[335372861,1724166428269,-3112.40011007,0.00015628,2]
[335372862,1724166428290,-823.0,0.0001576,2]
[335372863,1724166428313,-41835.68920378,0.00016,2]
[335372864,1724166428333,-978.05340684,0.00016338,2]
[335372865,1724166428354,-501.10654671,0.00016438,2]
[335372866,1724166428377,-500.0,0.00016438,2]